lending/lending_fUSD_20251121
["ID","MTS","AMOUNT","RATE_DAILY","PERIOD"]
[394580077,1763733041492,-365.08659521,0.00017973,2]
[394580078,1763733041500,-500.0,0.00017973,2]
[394580079,1763733041510,-500.0,0.00017973,2]
[394580080,1763733041520,-501.42210277,0.00017973,2]
[394580081,1763733041529,-500.0,0.00017973,2]
[394580082,1763733041539,-501.28182449,0.00017973,2]
[394580083,1763733041548,-500.0,0.00017973,2]
[394580084,1763733041558,-500.0,0.00017973,2]
[394580085,1763733041569,-502.46688489,0.00017973,2]
[394580086,1763733041578,-500.0,0.00017973,2]
[394580087,1763733041588,-500.0,0.00017973,2]
[394580088,1763733041598,-500.0,0.00017973,2]
[394580089,1763733041607,-500.0,0.00017973,2]
[394580090,1763733041617,-513.33377773,0.00017973,2]
[394580091,1763733041626,-160.8824245,0.00017973,2]
[394580092,1763733041635,-500.0,0.00017973,2]
[394580093,1763733041647,-500.0,0.00017973,2]
[394580094,1763733041657,-500.0,0.00017973,2]
[394580095,1763733041666,-500.0,0.00017973,2]
[394580096,1763733041675,-556.22649184,0.00017973,2]
[394580097,1763733041685,-500.0,0.00017973,2]
[394580098,1763733041694,-305.72760126,0.00017973,2]
[394580099,1763733041703,-500.0,0.00017973,2]
[394580100,1763733041714,-500.0,0.00017973,2]
[394580101,1763733041729,-500.0,0.00017973,2]
[394580102,1763733041738,-502.00196538,0.00017973,2]
[394580103,1763733041748,-500.0,0.00017973,2]
[394580104,1763733041758,-500.0,0.00017973,2]
[394580105,1763733041769,-500.0,0.00017973,2]
[394580106,1763733041778,-322.0,0.00017982,2]
[394580107,1763733041787,-1829.5760314,0.0001799,2]
[394580108,1763733041797,-1829.5760314,0.0001799,2]
[394580109,1763733041808,-151.0,0.00017997,2]
[394580110,1763733041818,-500.0,0.00017998,2]
[394580111,1763733041829,-526.52,0.00017998,2]
[394580112,1763733041839,-1589.68,0.00017998,2]
[394580113,1763733041850,-858.24,0.00017998,2]
[394580114,1763733041860,-1091.62348279,0.00017999,5]
[394580115,1763733041870,-1091.62348279,0.00017999,5]
[394580116,1763733041879,-1091.62348279,0.00017999,5]
[394580117,1763733041890,-1091.62348277,0.00017999,5]
[394580118,1763733041903,-1091.62348279,0.00017999,5]
[394580119,1763733041912,-1091.62348279,0.00017999,5]
[394580120,1763733041922,-150.0,0.00017999,2]
[394580121,1763733041932,-1066.92383856,0.00017999,5]
[394580122,1763733041943,-1066.92383855,0.00017999,5]
[394580123,1763733041952,-1066.92383856,0.00017999,5]
[394580124,1763733041962,-1066.92383856,0.00017999,5]
[394580125,1763733042127,-261.58291863,0.00017999,2]
[394580126,1763733042137,-300.0,0.00017999,2]
[394580127,1763733042150,-300.0,0.00017999,2]
[394580128,1763733042160,-666.0,0.00017999,2]
[394580129,1763733042170,-301.55735151,0.00017999,2]
[394580130,1763733042180,-300.0,0.00017999,2]
[394580131,1763733042190,-500.0,0.00017999,2]
[394580132,1763733042201,-500.0,0.00017999,2]
[394580133,1763733042210,-529.11873499,0.00017999,2]
[394580134,1763733042220,-526.52,0.00017999,2]
[394580135,1763733042229,-526.52,0.00017999,2]
[394580136,1763733042239,-526.52,0.00017999,2]
[394580137,1763733042249,-526.52,0.00017999,2]
[394580138,1763733042259,-526.52,0.00017999,2]
[394580139,1763733042269,-526.52,0.00017999,2]
[394580140,1763733042278,-526.52,0.00017999,2]
[394580141,1763733042288,-526.52,0.00017999,2]
[394580142,1763733042298,-526.69436629,0.00017999,2]
[394580143,1763733042308,-1589.68,0.00017999,2]
[394580144,1763733042319,-1589.68,0.00017999,2]
[394580145,1763733042328,-1589.68,0.00017999,2]
[394580146,1763733042338,-1589.68,0.00017999,2]
[394580147,1763733042348,-1589.68,0.00017999,2]
[394580148,1763733042358,-1589.68,0.00017999,2]
[394580149,1763733042368,-1589.68,0.00017999,2]
[394580150,1763733042378,-1589.68,0.00017999,2]
[394580151,1763733042387,-1589.84945968,0.00017999,2]
[394580152,1763733042398,-858.24,0.00017999,2]
[394580153,1763733042407,-858.24,0.00017999,2]
[394580154,1763733042416,-858.24,0.00017999,2]
[394580155,1763733042426,-858.24,0.00017999,2]
[394580156,1763733042436,-858.24,0.00017999,2]
[394580157,1763733042445,-858.24,0.00017999,2]
[394580158,1763733042455,-858.24,0.00017999,2]
[394580159,1763733042465,-858.24,0.00017999,2]
[394580161,1763733042475,-858.39985602,0.00017999,2]
[394580162,1763733042484,-300.0,0.00017999,2]
[394580163,1763733042494,-666.0,0.00017999,2]
[394580164,1763733042503,-300.0,0.00017999,2]
[394580165,1763733042513,-666.0,0.00017999,2]
[394580166,1763733042523,-663.63,0.00017999,2]
[394580167,1763733042532,-663.63,0.00017999,2]
[394580168,1763733042542,-663.63,0.00017999,2]
[394580169,1763733042552,-663.63,0.00017999,2]
[394580170,1763733042561,-663.63,0.00017999,2]
[394580171,1763733042571,-663.63,0.00017999,2]
[394580172,1763733042580,-663.63,0.00017999,2]
[394580173,1763733042590,-663.63,0.00017999,2]
[394580174,1763733042600,-663.63,0.00017999,2]
[394580175,1763733042610,-663.68716056,0.00017999,2]
[394580176,1763733042621,-8504997.12967041,0.00018,2]
[394580177,1763733042631,-1181.39522485,0.00018,2]
[394580178,1763733042642,-203397.90830841,0.00018,2]
[394580179,1763733043199,-409.27886748,0.00018,2]
[394580183,1763733043254,-964.87256871,0.00018,2]
[394580186,1763733043265,-447.66174487,0.00018,2]
[394580189,1763733044027,-3363.08,0.00018,2]
[394580190,1763733044051,-20090.39596528,0.00018,2]
[394580191,1763733044064,-40803.6216,0.00018,2]
[394580192,1763733044103,-462.1239985,0.00018,2]
[394580193,1763733044115,-1683.09393756,0.00018,2]
[394580194,1763733044126,-382.82068171,0.00018,2]
[394580195,1763733045278,-500.0,0.00015545,2]
[394580196,1763733045289,-430.0,0.00015545,2]
[394580197,1763733045536,-70.0,0.00015545,2]
[394580199,1763733045545,-500.0,0.00015545,2]
[394580200,1763733045554,-250.0,0.00015545,2]
[394580202,1763733045564,-6496.0,0.00017248,2]
[394580211,1763733045763,-426.56612961,0.0001779,3]
[394580213,1763733045774,-34530.4882244,0.00018,2]
[394580214,1763733045793,-4995.22319088,0.00018,2]
[394580215,1763733045996,-264894.51686442,0.00018,2]
[394580216,1763733046006,-842194.89746156,0.00018,2]
[394580217,1763733046022,-203373.14240823,0.00018,2]
[394580218,1763733046032,-167379.47106798,0.00018,2]
[394580219,1763733046042,-439106.2165961,0.00018,2]
[394580220,1763733046052,-420879.80605083,0.00018,2]
[394580221,1763733046228,-1749.37776105,0.00018,2]
[394580222,1763733046239,-9860.22989302,0.00018,2]
[394580228,1763733139108,1100.0,0.000159,5]
[394580229,1763733147128,171.86246686,0.00015446,2]
[394580230,1763733149962,157.96589854,0.00015446,2]
[394580231,1763733202823,2303.7,0.00019178,30]
[394580232,1763733253934,173.6627081,0.00015446,2]
[394580233,1763733278725,-1200.0,0.00015545,2]
[394580234,1763733278755,-300.0,0.00015545,2]
[394580235,1763733278785,-300.0,0.00015545,2]
[394580236,1763733278822,-300.0,0.00015545,2]
[394580237,1763733278853,-221.13744318,0.00015545,2]
[394580238,1763733278885,-188.85507978,0.00015545,2]
[394580239,1763733278915,-545.07037746,0.00015545,2]
[394580240,1763733278944,-250.0,0.00015546,2]
[394580241,1763733278974,-500.0,0.00015546,2]
[394580242,1763733279194,-2389.88419916,0.00015546,2]
[394580243,1763733279229,-10000.01,0.00015546,2]
[394580244,1763733279248,-10000.01,0.00015546,2]
[394580245,1763733281575,2746.97686992,0.00015446,2]
[394580246,1763733282445,-10000.01,0.00015546,2]
[394580247,1763733285617,-963.29250084,0.00015546,2]
[394580248,1763733285660,-8073.42499832,0.00015546,2]
[394580249,1763733285768,-10000.01,0.00015546,2]
[394580250,1763733291847,351.98943101,0.00015445,2]
[394580251,1763733297986,351.98943099,0.00015446,2]
[394580252,1763733303906,351.98943099,0.00015446,2]
[394580253,1763733313229,2500.0,0.00015446,2]
[394580254,1763733317254,4155.91908621,0.00015446,2]
[394580255,1763733322283,-300.0,0.00015545,2]
[394580256,1763733322316,-300.0,0.00015545,2]
[394580257,1763733322348,-1200.0,0.00015545,2]
[394580261,1763733362435,300.0,0.00015545,2]
[394580262,1763733364608,198.66680614,0.00015446,2]
[394580263,1763733388303,500.0,0.00015446,2]
[394580264,1763733394105,1052.98,0.00015446,2]
[394580265,1763733421657,300.0,0.00015545,2]
[394580266,1763733432420,151.0,0.00015546,2]
[394580267,1763733433143,151.0,0.00015546,2]
[394580268,1763733433854,151.0,0.00015546,2]
[394580269,1763733434571,151.0,0.00015546,2]
[394580270,1763733435439,151.0,0.00015546,2]
[394580271,1763733436152,151.0,0.00015546,2]
[394580272,1763733436899,151.0,0.00015546,2]
[394580273,1763733437555,151.0,0.00015546,2]
[394580274,1763733438263,151.0,0.00015546,2]
[394580275,1763733439425,151.0,0.00015546,2]
[394580276,1763733439723,151.0,0.00015546,2]
[394580277,1763733440938,151.0,0.00015546,2]
[394580278,1763733441584,151.0,0.00015546,2]
[394580279,1763733442351,151.0,0.00015546,2]
[394580280,1763733443064,151.0,0.00015546,2]
[394580281,1763733443798,259.03096989,0.00015546,2]
[394580282,1763733444449,680.081712,0.00015468,2]
[394580283,1763733467222,844.25051197,0.00015545,2]
[394580284,1763733467247,71.74948803,0.00015545,2]
[394580285,1763733471676,150.0,0.00016276,120]
[394580286,1763733482449,2500.0,0.00015446,2]
[394580287,1763733482614,300.0,0.00015545,2]
[394580288,1763733539300,173.66270808,0.00015446,2]
[394580289,1763733542585,300.0,0.00015545,2]
[394580290,1763733557142,500.0,0.00015446,2]
[394580291,1763733590206,184.52879537,0.00015446,2]
[394580292,1763733601984,300.0,0.00015545,2]
[394580293,1763733602120,300.0,0.00015545,2]
[394580296,1763733603666,300.0,0.00015545,2]
[394580297,1763733604252,1200.0,0.00015545,2]
[394580345,1763733638957,3870.06900852,0.00015446,2]
[394580346,1763733638985,1129.94099148,0.00015446,2]
[394580347,1763733662389,300.0,0.00015545,2]
[394580351,1763733696269,4194.898,0.00015235,2]
[394580352,1763733696572,286.339,0.00015235,2]
[394580353,1763733701550,500.0,0.00015546,2]
[394580354,1763733701811,500.0,0.00015546,2]
[394580355,1763733702083,500.0,0.00015546,2]
[394580356,1763733703505,2588.83200852,0.00015446,2]
[394580357,1763733703531,1151.49516906,0.00015446,2]
[394580358,1763733725308,500.0,0.00015446,2]
[394580359,1763733736845,500.0,0.00015546,2]
[394580360,1763733736928,500.0,0.00015546,2]
[394580361,1763733737165,500.0,0.00015546,2]
[394580362,1763733747026,869.75,0.00015546,2]
[394580363,1763733747222,869.75,0.00015546,2]
[394580364,1763733747483,869.75,0.00015546,2]
[394580365,1763733767295,500.0,0.00015546,2]
[394580366,1763733767556,500.0,0.00015546,2]
[394580367,1763733767774,500.0,0.00015546,2]
[394580368,1763733771547,500.0,0.00015546,2]
[394580369,1763733771615,500.0,0.00015546,2]
[394580370,1763733771675,500.0,0.00015546,2]
[394580371,1763733782104,300.0,0.00015545,2]
[394580372,1763733786835,500.0,0.00015546,2]
[394580373,1763733787107,439.26483094,0.00015546,2]
[394580374,1763733787131,60.73516906,0.00015546,2]
[394580375,1763733787349,500.0,0.00015546,2]
[394580376,1763733792814,881.91,0.00015546,2]
[394580377,1763733792892,881.91,0.00015546,2]
[394580378,1763733792952,881.91,0.00015546,2]
[394580379,1763733793853,2472.27918291,0.00015446,2]
[394580380,1763733808347,4321.26564803,0.00015446,2]
[394580381,1763733808372,10000.01,0.00015446,2]
[394580382,1763733808396,10000.01,0.00015446,2]
[394580383,1763733808421,7306.15325197,0.00015446,2]
[394580384,1763733815125,2500.0,0.00015446,2]
[394580385,1763733818665,166.85200388,0.00015446,2]
[394580386,1763733826956,27.00474415,0.00015446,2]
[394580387,1763733826982,157.5240512,0.00015446,2]
[394580389,1763733895856,500.0,0.00015446,2]
[394580392,1763733899928,2669.6,8.089e-05,2]
[394580393,1763733899987,2669.6,8.515e-05,2]
[394580394,1763733900174,2669.6,8.941e-05,2]
[394580395,1763733900275,1333.6859488,9.366e-05,2]
[394580396,1763733900301,1335.9140512,9.366e-05,2]
[394580397,1763733900428,2669.6,9.792e-05,2]
[394580398,1763733900651,2669.6,0.00010218,2]
[394580399,1763733900855,2669.6,0.00010644,2]
[394580400,1763733901109,655.2959488,0.00011069,2]
[394580401,1763733901136,2014.3040512,0.00011069,2]
[394580402,1763733901555,2669.6,0.00011495,2]
[394580403,1763733901800,2669.6,0.00011921,2]
[394580404,1763733902053,2646.5059488,0.00012347,2]
[394580405,1763733902080,23.0940512,0.00012347,2]
[394580406,1763733902266,2669.6,0.00012772,2]
[394580407,1763733902473,2669.6,0.00013198,2]
[394580408,1763733902935,2669.6,0.00013624,2]
[394580409,1763733903047,300.0,0.00015545,2]
[394580410,1763733903092,1200.0,0.00015545,2]
[394580411,1763733903138,468.1159488,0.0001405,2]
[394580412,1763733903164,2201.4840512,0.0001405,2]
[394580413,1763733903339,2669.6,0.00014475,2]
[394580414,1763733903396,2669.6,0.00014901,2]
[394580416,1763733903560,2459.3259488,0.00015327,2]
[394580417,1763733903586,210.2740512,0.00015327,2]
[394580420,1763733904778,300.0,0.00015545,2]
[394580421,1763733920066,1000.0,0.00015446,2]
[394580422,1763733942192,211.0,9.989e-05,2]
[394580423,1763733961710,300.0,0.00015545,2]
[394580424,1763733965316,151.0,0.00015546,2]
[394580425,1763733965356,151.0,0.00015546,2]
[394580426,1763733966936,300.0,0.00015545,2]
[394580427,1763733977999,7376.7359488,0.00015446,2]
[394580428,1763733978024,10000.01,0.00015446,2]
[394580429,1763733978051,1958.7462512,0.00015446,2]
[394580430,1763733982730,1000.0,0.00015545,2]
[394580431,1763734034463,1300.0,0.000159,5]
[394580432,1763734062286,184.52879535,0.00015446,2]
[394580433,1763734068665,771.67,0.00015546,2]
[394580434,1763734068763,771.67,0.00015546,2]
[394580435,1763734068957,771.67,0.00015546,2]
[394580436,1763734070659,2361.03,0.00015546,2]
[394580437,1763734082673,300.0,0.00015545,2]
[394580438,1763734089780,1880.69495345,0.00015446,2]
[394580439,1763734089803,2387.56804068,0.00015446,2]
[394580440,1763734097928,7612.44195932,0.00015446,2]
[394580441,1763734097960,10000.01,0.00015446,2]
[394580442,1763734097990,10000.01,0.00015446,2]
[394580443,1763734098018,10000.01,0.00015446,2]
[394580444,1763734098047,10000.01,0.00015446,2]
[394580445,1763734098075,10000.01,0.00015446,2]
[394580446,1763734098108,10000.01,0.00015446,2]
[394580447,1763734098136,10000.01,0.00015446,2]
[394580448,1763734098172,10000.01,0.00015446,2]
[394580449,1763734098207,5731.7186184,0.00015446,2]
[394580450,1763734098237,2000.0,0.00015446,2]
[394580451,1763734108243,-153.52637506,0.00015446,2]
[394580452,1763734116181,-3292.94724988,0.00015446,2]
[394580453,1763734116267,-10000.01,0.00015446,2]
[394580454,1763734116378,-10000.01,0.00015446,2]
[394580455,1763734116552,-10000.01,0.00015446,2]
[394580456,1763734116854,-10000.01,0.00015446,2]
[394580457,1763734116870,-10000.01,0.00015446,2]
[394580458,1763734124520,-10000.01,0.00015446,2]
[394580459,1763734124640,-10000.01,0.00015446,2]
[394580460,1763734124773,-10000.01,0.00015446,2]
[394580461,1763734126026,-10000.01,0.00015446,2]
[394580462,1763734136903,-10000.01,0.00015446,2]
[394580463,1763734137638,-10000.01,0.00015446,2]
[394580464,1763734142441,-300.0,0.00015445,2]
[394580465,1763734142484,-9400.01,0.00015446,2]
[394580466,1763734142594,-10000.01,0.00015446,2]
[394580467,1763734145779,-10000.01,0.00015446,2]
[394580468,1763734149624,-10000.01,0.00015446,2]
[394580469,1763734149856,-10000.01,0.00015446,2]
[394580470,1763734149996,-10000.01,0.00015446,2]
[394580471,1763734150127,-10000.01,0.00015446,2]
[394580472,1763734162992,-10000.01,0.00015446,2]
[394580473,1763734163093,-10000.01,0.00015446,2]
[394580474,1763734163128,-10000.01,0.00015446,2]
[394580475,1763734163268,-10000.01,0.00015446,2]
[394580476,1763734163419,-10000.01,0.00015446,2]
[394580477,1763734163590,-10000.01,0.00015446,2]
[394580478,1763734163721,-10000.01,0.00015446,2]
[394580479,1763734163854,-10000.01,0.00015446,2]
[394580509,1763734232017,-306.38247304,0.000154,2]
[394580510,1763734232027,-300.0,0.00015445,2]
[394580511,1763734232037,-1120.88456359,0.00015445,2]
[394580513,1763734233011,-79.11543641,0.00015445,2]
[394580514,1763734233021,-410.04155268,0.00015445,2]
[394580515,1763734233031,-500.0,0.00015445,2]
[394580516,1763734233040,-460.73825164,0.00015445,2]
[394580517,1763734233050,-22.83772264,0.00015445,2]
[394580518,1763734233066,-477.16227736,0.00015445,2]
[394580519,1763734233075,-500.0,0.00015445,2]
[394580520,1763734233084,-500.0,0.00015445,2]
[394580521,1763734233093,-587.26531289,0.00015445,2]
[394580522,1763734233102,-500.0,0.00015445,2]
[394580523,1763734233112,-755.1665563,0.00015446,2]
[394580524,1763734233121,-6320.10612191,0.00015446,2]
[394580525,1763734233133,-955.04341264,0.00015446,2]
[394580526,1763734233147,-15232.2015949,0.00015446,2]
[394580527,1763734233159,-500.0,0.00015446,2]
[394580528,1763734238627,-28298.68749875,0.00015446,2]
[394580529,1763734238640,-672.36545114,0.00015446,2]
[394580530,1763734238668,-349984.14809306,0.00015446,2]
[394580531,1763734238679,-500.0,0.00015446,2]
[394580532,1763734238690,-3136.22,0.00015478,2]
[394580533,1763734238700,-1000.0,0.00015546,2]
[394580534,1763734238714,-737.71,0.00015546,2]
[394580535,1763734238725,-737.71,0.00015546,2]
[394580536,1763734238735,-737.71,0.00015546,2]
[394580537,1763734238746,-1000.0,0.00015546,2]
[394580538,1763734238756,-210.87239285,0.00015546,2]
[394580539,1763734238767,-610.0,0.00015556,2]
[394580540,1763734238777,-250.0,0.00015559,2]
[394580541,1763734238786,-500.0,0.00015573,2]
[394580542,1763734238796,-500.0,0.00015573,2]
[394580543,1763734238806,-500.0,0.00015611,2]
[394580544,1763734238815,-278.33,0.00015645,2]
[394580545,1763734238825,-250.0,0.00015646,2]
[394580546,1763734238835,-500.0,0.00015646,2]
[394580547,1763734238844,-500.0,0.00015646,2]
[394580548,1763734238854,-500.0,0.00015646,2]
[394580549,1763734238863,-500.0,0.00015646,2]
[394580550,1763734238873,-500.0,0.00015646,2]
[394580551,1763734238882,-500.0,0.00015646,2]
[394580552,1763734238892,-500.0,0.00015646,2]
[394580554,1763734238904,-500.0,0.00015646,2]
[394580556,1763734238914,-500.0,0.00015646,2]
[394580558,1763734238923,-500.0,0.00015646,2]
[394580560,1763734238933,-4268.26299406,0.00015719,2]
[394580562,1763734238942,-2378.29,0.00015739,2]
[394580564,1763734238951,-500.0,0.00015746,2]
[394580566,1763734238960,-530.31019318,0.00015746,2]
[394580568,1763734238970,-2669.6,0.00015753,2]
[394580570,1763734238979,-261.66181204,0.00015899,2]
[394580572,1763734238989,-153.52637505,0.00015937,2]
[394580574,1763734238998,-4268.26299406,0.00015991,2]
[394580576,1763734239008,-166.66,0.00016066,2]
[394580578,1763734239017,-1000.0,0.00016121,2]
[394580579,1763734239027,-1000.0,0.00016121,2]
[394580582,1763734239037,-42596.24466746,0.0001615,2]
[394580584,1763734239047,-439.86,0.00016178,2]
[394580585,1763734239056,-2669.6,0.00016178,2]
[394580587,1763734239066,-999.0,0.00016187,3]
[394580589,1763734239075,-150.0,0.000162,2]
[394580591,1763734239085,-150.0,0.000162,2]
[394580594,1763734239094,-150.0,0.000162,2]
[394580596,1763734239105,-150.0,0.000162,2]
[394580598,1763734239114,-150.0,0.000162,2]
[394580600,1763734239124,-150.0,0.000162,2]
[394580602,1763734239133,-150.0,0.000162,2]
[394580604,1763734239145,-150.0,0.000162,2]
[394580606,1763734239156,-200.45,0.00016201,2]
[394580608,1763734239166,-5982.15,0.00016234,2]
[394580610,1763734239175,-30006.67,0.00016257,2]
[394580612,1763734239187,-280.14,0.00016262,2]
[394580614,1763734239196,-150.99,0.00016262,2]
[394580616,1763734239206,-9999.99,0.00016264,2]
[394580618,1763734239215,-1981.5,0.00016264,2]
[394580620,1763734239227,-307.86,0.00016264,2]
[394580622,1763734239236,-4268.26299406,0.00016264,2]
[394580624,1763734239246,-150.0,0.00016276,2]
[394580626,1763734239255,-153.52637505,0.00016428,2]
[394580628,1763734239265,-500.0,0.00016438,2]
[394580630,1763734239275,-500.0,0.00016438,2]
[394580632,1763734239284,-500.0,0.00016438,2]
[394580634,1763734239294,-277.34399047,0.00016438,2]
[394580636,1763734239303,-500.0,0.00016438,2]
[394580638,1763734239313,-163.74,0.0001644,2]
[394580640,1763734239323,-278.33,0.00016514,2]
[394580642,1763734239333,-4268.26299406,0.00016537,2]
[394580644,1763734239343,-510.0,0.00016573,2]
[394580646,1763734239352,-1000.0,0.00016587,2]
[394580648,1763734239362,-151.0,0.00016631,2]
[394580650,1763734239372,-1004.02460785,0.00016668,2]
[394580652,1763734239382,-1500.0,0.00016668,2]
[394580654,1763734239392,-500.0,0.00016712,2]
[394580656,1763734239402,-166.66,0.00016729,2]
[394580658,1763734239411,-150.0,0.000168,2]
[394580660,1763734239421,-4268.26299406,0.00016809,2]
[394580662,1763734239431,-500.0,0.00016853,2]
[394580664,1763734239443,-420.0,0.00016896,2]
[394580666,1763734239453,-153.52637505,0.00016918,2]
[394580668,1763734239463,-309.0,0.00016922,2]
[394580670,1763734239472,-1680.0,0.00016982,2]
[394580673,1763734239482,-150.0,0.00016986,2]
[394580675,1763734239492,-500.0,0.00016986,2]
[394580677,1763734239501,-500.0,0.00016999,2]
[394580678,1763734239510,-369.70570218,0.00016999,2]
[394580680,1763734239519,-2000.0,0.00017,2]
[394580683,1763734239530,-1000.0,0.00017,2]
[394580684,1763734239540,-309.0,0.00017063,2]
[394580687,1763734239549,-4268.26299406,0.00017082,2]
[394580689,1763734239558,-204.7838812,0.0001709,2]
[394580690,1763734239568,-154.03692801,0.0001709,2]
[394580693,1763734239577,-150.0,0.0001709,2]
[394580695,1763734239587,-150.0,0.0001709,2]
[394580697,1763734239596,-205.51892774,0.0001709,2]
[394580698,1763734239606,-200.0,0.0001709,2]
[394580700,1763734239615,-500.0,0.0001709,2]
[394580703,1763734239625,-150.0,0.0001709,2]
[394580705,1763734239635,-500.0,0.0001709,2]
[394580706,1763734239644,-150.0,0.0001709,2]
[394580709,1763734239655,-500.0,0.0001709,2]
[394580710,1763734239664,-500.0,0.0001709,2]
[394580712,1763734239674,-2092.314228,0.000171,2]
[394580715,1763734239685,-151.09405522,0.00017101,2]
[394580716,1763734239695,-193.0,0.00017101,2]
[394580719,1763734239705,-300.0,0.00017101,2]
[394580720,1763734239715,-300.0,0.00017101,2]
[394580721,1763734239725,-300.0,0.00017101,2]
[394580722,1763734239735,-300.0,0.00017101,2]
[394580723,1763734239745,-2500.0,0.00017101,2]
[394580724,1763734239754,-2500.0,0.00017101,2]
[394580725,1763734239764,-2500.0,0.00017101,2]
[394580726,1763734239774,-6000.0,0.00017101,3]
[394580727,1763734239783,-2579.19773304,0.00017101,3]
[394580728,1763734239792,-250.0,0.00017101,2]
[394580729,1763734239802,-300.0,0.00017101,2]
[394580730,1763734239811,-300.0,0.00017101,2]
[394580731,1763734239820,-200.0,0.00017101,2]
[394580732,1763734239830,-200.0,0.00017101,2]
[394580733,1763734239839,-200.0,0.00017101,2]
[394580734,1763734239848,-200.43996737,0.00017101,2]
[394580735,1763734239858,-1807.08,0.00017101,2]
[394580736,1763734239867,-3435.0,0.00017102,2]
[394580737,1763734239876,-575.0,0.00017102,2]
[394580738,1763734239886,-1328.86,0.00017102,2]
[394580739,1763734239895,-617.899,0.00017102,2]
[394580740,1763734239905,-822.0,0.00017102,2]
[394580741,1763734239914,-1609.041,0.00017102,2]
[394580743,1763734239924,-1256.0,0.00017102,2]
[394580744,1763734239935,-783.0,0.00017102,2]
[394580745,1763734239945,-1192.0,0.00017102,2]
[394580746,1763734239954,-908.0,0.00017102,2]
[394580747,1763734239964,-2659.0,0.00017102,2]
[394580748,1763734239973,-6550.037,0.00017102,2]
[394580749,1763734239983,-296.253,0.00017102,2]
[394580750,1763734239992,-1606.0,0.00017102,2]
[394580751,1763734240002,-150.0,0.00017123,2]
[394580752,1763734240011,-309.0,0.00017124,2]
[394580753,1763734240020,-309.0,0.00017131,2]
[394580754,1763734240029,-426.56612961,0.00017138,2]
[394580755,1763734240039,-163.00731315,0.00017153,2]
[394580756,1763734240048,-309.0,0.000172,2]
[394580757,1763734240058,-455.33205085,0.00017216,2]
[394580758,1763734240067,-150.0,0.00017227,2]
[394580759,1763734240076,-150.0,0.00017227,2]
[394580760,1763734240086,-500.0,0.00017227,2]
[394580761,1763734240096,-500.0,0.00017227,2]
[394580762,1763734240106,-150.0,0.00017227,2]
[394580763,1763734240116,-500.0,0.00017227,2]
[394580764,1763734240126,-500.0,0.00017227,2]
[394580765,1763734240136,-500.0,0.0001724,2]
[394580766,1763734240150,-414.60784787,0.0001724,2]
[394580767,1763734240160,-500.0,0.0001724,2]
[394580768,1763734240170,-150.0,0.0001726,2]
[394580769,1763734240180,-500.0,0.0001726,2]
[394580770,1763734240191,-309.0,0.00017262,2]
[394580771,1763734240200,-2600.0,0.000173,6]
[394580772,1763734240210,-150.0,0.00017348,2]
[394580773,1763734240219,-150.0,0.00017348,2]
[394580774,1763734240229,-227.503,0.00017348,2]
[394580775,1763734240239,-150.0,0.00017348,2]
[394580776,1763734240248,-283.616,0.00017348,2]